fUSD/lending_fUSD_20240222
["ID","MTS","AMOUNT","RATE_DAILY","PERIOD"]
[314841487,1708584639928,-488.3851802,0.00035616,2]
[314841488,1708584639938,-500.0,0.00035616,2]
[314841489,1708584639947,-271.32707127,0.00035616,2]
[314841490,1708584639957,-500.0,0.00035616,2]
[314841491,1708584639966,-500.0,0.00035616,2]
[314841492,1708584639976,-500.0,0.00035616,2]
[314841493,1708584639985,-522.96640994,0.00035616,2]
[314841494,1708584639994,-508.13913215,0.00035616,2]
[314841495,1708584640004,-500.0,0.00035616,2]
[314841496,1708584640013,-500.0,0.00035616,2]
[314841497,1708584640023,-1066.26,0.00035616,2]
[314841498,1708584640032,-500.0,0.00035616,2]
[314841500,1708584640042,-507.67888217,0.00035616,2]
[314841501,1708584640051,-500.0,0.00035616,2]
[314841502,1708584640061,-500.0,0.00035616,2]
[314841503,1708584640070,-500.0,0.00035616,2]
[314841504,1708584640081,-500.0,0.00035616,2]
[314841505,1708584640091,-500.0,0.00035616,2]
[314841506,1708584640100,-500.0,0.00035616,2]
[314841507,1708584640109,-500.0,0.00035616,2]
[314841508,1708584640119,-500.0,0.00035616,2]
[314841509,1708584640128,-1269.2,0.00035616,2]
[314841510,1708584640139,-500.0,0.00035616,2]
[314841511,1708584640149,-503.47321877,0.00035616,2]
[314841512,1708584640159,-500.0,0.00035616,2]
[314841513,1708584640169,-500.0,0.00035616,2]
[314841514,1708584640180,-500.0,0.00035616,2]
[314841515,1708584640193,-511.04,0.00035616,2]
[314841516,1708584640202,-500.0,0.00035616,2]
[314841517,1708584640212,-500.0,0.00035616,2]
[314841518,1708584640222,-500.0,0.00035616,2]
[314841519,1708584640232,-500.0,0.00035616,2]
[314841520,1708584640243,-500.0,0.00035616,2]
[314841521,1708584640252,-500.0,0.00035616,2]
[314841522,1708584640262,-500.0,0.00035616,2]
[314841523,1708584640271,-500.0,0.00035616,2]
[314841524,1708584640281,-500.0,0.00035616,2]
[314841525,1708584640290,-500.0,0.00035616,2]
[314841526,1708584640299,-500.0,0.00035616,2]
[314841527,1708584640309,-510.47749136,0.00035616,2]
[314841528,1708584640318,-500.0,0.00035616,2]
[314841529,1708584640327,-500.0,0.00035616,2]
[314841530,1708584640336,-500.0,0.00035616,2]
[314841531,1708584640346,-505.32385687,0.00035616,2]
[314841532,1708584640356,-1477.28,0.00035616,2]
[314841533,1708584640365,-500.0,0.00035616,2]
[314841534,1708584640374,-974.28,0.00035616,2]
[314841535,1708584640384,-500.0,0.00035616,2]
[314841536,1708584640394,-500.0,0.00035616,2]
[314841537,1708584640404,-500.0,0.00035616,2]
[314841538,1708584640413,-622.96088857,0.00035616,2]
[314841539,1708584640425,-500.0,0.00035616,2]
[314841540,1708584640434,-500.0,0.00035616,2]
[314841541,1708584640444,-500.0,0.00035616,2]
[314841542,1708584640453,-500.0,0.00035616,2]
[314841543,1708584640463,-500.0,0.00035616,2]
[314841544,1708584640473,-500.0,0.00035616,2]
[314841545,1708584640483,-512.55,0.00035616,2]
[314841546,1708584640494,-500.0,0.00035616,2]
[314841547,1708584640504,-500.0,0.00035616,2]
[314841548,1708584640514,-576.93,0.00035616,2]
[314841549,1708584640523,-500.0,0.00035616,2]
[314841550,1708584640533,-500.0,0.00035616,2]
[314841551,1708584640544,-500.0,0.00035616,2]
[314841552,1708584640557,-500.0,0.00035616,2]
[314841553,1708584640566,-500.0,0.00035616,2]
[314841554,1708584640575,-500.0,0.00035616,2]
[314841555,1708584640584,-500.0,0.00035616,2]
[314841556,1708584640594,-500.0,0.00035616,2]
[314841557,1708584640604,-500.0,0.00035616,2]
[314841558,1708584640615,-500.0,0.00035616,2]
[314841559,1708584640626,-500.0,0.00035616,2]
[314841560,1708584640634,-861.92,0.00035616,2]
[314841561,1708584640644,-500.0,0.00035616,2]
[314841562,1708584640653,-500.0,0.00035616,2]
[314841563,1708584640662,-500.0,0.00035616,2]
[314841564,1708584640671,-500.0,0.00035616,2]
[314841565,1708584640680,-500.0,0.00035616,2]
[314841566,1708584640691,-500.0,0.00035616,2]
[314841567,1708584640700,-500.0,0.00035616,2]
[314841568,1708584640710,-500.0,0.00035616,2]
[314841569,1708584640719,-500.0,0.00035616,2]
[314841570,1708584640729,-951.75,0.00035616,2]
[314841571,1708584640739,-500.0,0.00035616,2]
[314841572,1708584640748,-500.0,0.00035616,2]
[314841573,1708584640757,-500.0,0.00035616,2]
[314841574,1708584640767,-500.0,0.00035616,2]
[314841575,1708584640776,-500.0,0.00035616,2]
[314841576,1708584640785,-595.66715505,0.00035616,2]
[314841577,1708584640795,-500.0,0.00035616,2]
[314841578,1708584640804,-1105.38,0.00035616,2]
[314841579,1708584640813,-500.0,0.00035616,2]
[314841580,1708584640822,-500.0,0.00035616,2]
[314841581,1708584640831,-746.26,0.00035616,2]
[314841582,1708584640840,-500.0,0.00035616,2]
[314841583,1708584640850,-500.0,0.00035616,2]
[314841584,1708584640859,-500.0,0.00035616,2]
[314841585,1708584640869,-542.29,0.00035616,2]
[314841586,1708584640878,-500.0,0.00035616,2]
[314841587,1708584640888,-518.48209018,0.00035616,2]
[314841588,1708584640898,-500.0,0.00035616,2]
[314841589,1708584640907,-500.0,0.00035616,2]
[314841590,1708584640917,-1336.86,0.00035616,2]
[314841591,1708584640926,-500.0,0.00035616,2]
[314841592,1708584640935,-500.0,0.00035616,2]
[314841593,1708584640945,-961.4,0.00035616,2]
[314841594,1708584640954,-500.0,0.00035616,2]
[314841595,1708584640963,-500.0,0.00035616,2]
[314841596,1708584640973,-500.0,0.00035616,2]
[314841598,1708584640982,-500.0,0.00035616,2]
[314841600,1708584640993,-500.0,0.00035616,2]
[314841602,1708584641003,-1522.88,0.00035616,2]
[314841604,1708584641012,-407.861267,0.00035616,2]
[314841606,1708584641022,-500.0,0.00035616,2]
[314841608,1708584641031,-500.0,0.00035616,2]
[314841610,1708584641040,-898.6,0.00035616,2]
[314841612,1708584641049,-500.0,0.00035616,2]
[314841614,1708584641058,-500.0,0.00035616,2]
[314841616,1708584641068,-500.0,0.00035616,2]
[314841618,1708584641077,-500.0,0.00035616,2]
[314841620,1708584641087,-500.0,0.00035616,2]
[314841622,1708584641096,-500.0,0.00035616,2]
[314841624,1708584641106,-500.0,0.00035616,2]
[314841626,1708584641115,-500.0,0.00035616,2]
[314841628,1708584641124,-841.74,0.00035616,2]
[314841630,1708584641134,-781.16,0.00035616,2]
[314841632,1708584641143,-500.0,0.00035616,2]
[314841633,1708584641152,-975.95,0.00035616,2]
[314841634,1708584641161,-500.0,0.00035616,2]
[314841635,1708584641170,-500.0,0.00035616,2]
[314841636,1708584641180,-500.0,0.00035616,2]
[314841637,1708584641189,-517.96449791,0.00035616,2]
[314841638,1708584641198,-1228.29,0.00035616,2]
[314841639,1708584641207,-500.0,0.00035616,2]
[314841640,1708584641217,-518.79496622,0.00035616,2]
[314841641,1708584641226,-500.0,0.00035616,2]
[314841642,1708584641238,-500.0,0.00035616,2]
[314841643,1708584641248,-911.98,0.00035616,2]
[314841644,1708584641257,-500.0,0.00035616,2]
[314841645,1708584641267,-500.0,0.00035616,2]
[314841646,1708584641276,-500.0,0.00035616,2]
[314841647,1708584641285,-947.7,0.00035616,2]
[314841648,1708584641295,-500.0,0.00035616,2]
[314841649,1708584641304,-892.78,0.00035616,2]
[314841650,1708584641314,-500.0,0.00035616,2]
[314841651,1708584641323,-500.0,0.00035616,2]
[314841652,1708584641333,-500.0,0.00035616,2]
[314841653,1708584641343,-500.0,0.00035616,2]
[314841654,1708584641353,-727.86,0.00035616,2]
[314841655,1708584641363,-500.0,0.00035616,2]
[314841656,1708584641373,-500.0,0.00035616,2]
[314841657,1708584641383,-500.0,0.00035616,2]
[314841658,1708584641392,-784.07,0.00035616,2]
[314841659,1708584641401,-619.51,0.00035616,2]
[314841660,1708584641411,-682.22,0.00035616,2]
[314841661,1708584641420,-500.0,0.00035616,2]
[314841662,1708584641429,-500.0,0.00035616,2]
[314841663,1708584641441,-485.74329061,0.00035616,2]
[314841664,1708584641452,-500.0,0.00035616,2]
[314841665,1708584641464,-500.0,0.00035616,2]
[314841666,1708584641475,-153.35912939,0.00035616,2]
[314841667,1708584641488,-500.0,0.00035616,2]
[314841668,1708584641499,-500.0,0.00035616,2]
[314841669,1708584641509,-500.0,0.00035616,2]
[314841670,1708584641520,-500.0,0.00035616,2]
[314841671,1708584641529,-574.57,0.00035616,2]
[314841672,1708584641539,-500.0,0.00035616,2]
[314841673,1708584641550,-500.0,0.00035616,2]
[314841674,1708584641560,-500.0,0.00035616,2]
[314841675,1708584641569,-738.83,0.00035616,2]
[314841676,1708584641579,-640.71,0.00035616,2]
[314841677,1708584641589,-500.0,0.00035616,2]
[314841678,1708584641599,-500.0,0.00035616,2]
[314841679,1708584641608,-1233.47,0.00035616,2]
[314841680,1708584641617,-500.0,0.00035616,2]
[314841681,1708584641627,-500.0,0.00035616,2]
[314841682,1708584641637,-500.0,0.00035616,2]
[314841683,1708584641647,-500.0,0.00035616,2]
[314841684,1708584641656,-829.65,0.00035616,2]
[314841685,1708584641666,-743.49,0.00035616,2]
[314841686,1708584641675,-500.0,0.00035616,2]
[314841687,1708584641684,-500.0,0.00035616,2]
[314841688,1708584641693,-504.27382183,0.00035616,2]
[314841689,1708584641703,-500.0,0.00035616,2]
[314841690,1708584641808,-519.76254073,0.00035616,2]
[314841691,1708584641819,-673.7,0.00035616,2]
[314841692,1708584641827,-500.0,0.00035616,2]
[314841693,1708584641837,-522.66,0.00035616,2]
[314841694,1708584641847,-500.0,0.00035616,2]
[314841695,1708584641855,-500.0,0.00035616,2]
[314841696,1708584641865,-500.0,0.00035616,2]
[314841697,1708584641874,-500.0,0.00035616,2]
[314841698,1708584641883,-500.0,0.00035616,2]
[314841699,1708584641892,-500.0,0.00035616,2]
[314841700,1708584641901,-272.13273482,0.00035616,2]
[314841701,1708584641911,-501.96562911,0.00035616,2]
[314841702,1708584641920,-500.0,0.00035616,2]
[314841703,1708584641929,-500.0,0.00035616,2]
[314841704,1708584641939,-500.0,0.00035616,2]
[314841705,1708584641949,-524.45,0.00035616,2]
[314841706,1708584641958,-676.86,0.00035616,2]
[314841707,1708584641968,-500.0,0.00035616,2]
[314841708,1708584641977,-500.0,0.00035616,2]
[314841709,1708584641986,-500.0,0.00035616,2]
[314841710,1708584641996,-500.0,0.00035616,2]
[314841711,1708584642006,-500.0,0.00035616,2]
[314841712,1708584642015,-592.0,0.00035616,2]
[314841713,1708584642024,-500.0,0.00035616,2]
[314841714,1708584642033,-500.0,0.00035616,2]
[314841715,1708584642042,-500.0,0.00035616,2]
[314841716,1708584642052,-500.0,0.00035616,2]
[314841717,1708584642061,-1373.3,0.00035616,2]
[314841718,1708584642070,-1187.08,0.00035616,2]
[314841719,1708584642078,-636.49,0.00035616,2]
[314841720,1708584642088,-500.0,0.00035616,2]
[314841721,1708584642097,-500.0,0.00035616,2]
[314841722,1708584642106,-509.73495404,0.00035616,2]
[314841723,1708584642114,-1107.36,0.00035616,2]
[314841724,1708584642124,-563.72655031,0.00035616,2]
[314841725,1708584642133,-500.0,0.00035616,2]
[314841726,1708584642143,-500.0,0.00035616,2]
[314841727,1708584642152,-814.22,0.00035616,2]
[314841728,1708584642161,-500.0,0.00035616,2]
[314841729,1708584642170,-314.19962188,0.00035616,2]
[314841730,1708584642179,-500.0,0.00035616,2]
[314841731,1708584642188,-541.19,0.00035616,2]
[314841732,1708584642198,-541.25,0.00035616,2]
[314841733,1708584642208,-824.02,0.00035616,2]
[314841734,1708584642217,-500.0,0.00035616,2]
[314841735,1708584642227,-513.42742396,0.00035616,2]
[314841737,1708584642237,-500.0,0.00035616,2]
[314841739,1708584642247,-507.88634611,0.00035616,2]
[314841740,1708584642256,-518.57304655,0.00035616,2]
[314841741,1708584642265,-500.0,0.00035616,2]
[314841742,1708584642274,-500.0,0.00035616,2]
[314841743,1708584642283,-738.36,0.00035616,2]
[314841745,1708584642292,-503.23,0.00035616,2]
[314841747,1708584642301,-500.0,0.00035616,2]
[314841748,1708584642311,-500.0,0.00035616,2]
[314841749,1708584642320,-500.0,0.00035616,2]
[314841750,1708584642330,-500.0,0.00035616,2]
[314841751,1708584642339,-599.54,0.00035616,2]
[314841752,1708584642350,-528.80698785,0.00035616,2]
[314841753,1708584642359,-500.0,0.00035616,2]
[314841754,1708584642368,-500.0,0.00035616,2]
[314841755,1708584642377,-500.0,0.00035616,2]
[314841756,1708584642386,-759.9,0.00035616,2]
[314841757,1708584642395,-500.0,0.00035616,2]
[314841758,1708584642404,-500.0,0.00035616,2]
[314841759,1708584642414,-500.0,0.00035616,2]
[314841760,1708584642422,-672.62,0.00035616,2]
[314841761,1708584642432,-558.43,0.00035616,2]
[314841762,1708584642441,-500.0,0.00035616,2]
[314841763,1708584642450,-500.0,0.00035616,2]
[314841764,1708584642459,-155.88917094,0.00035616,2]
[314841765,1708584642468,-495.74009364,0.00035616,2]
[314841766,1708584642477,-500.0,0.00035616,2]
[314841767,1708584642487,-653.84,0.00035616,2]
[314841768,1708584642496,-500.0,0.00035616,2]
[314841769,1708584642505,-500.0,0.00035616,2]
[314841770,1708584642514,-500.0,0.00035616,2]
[314841771,1708584642523,-500.0,0.00035616,2]
[314841772,1708584642533,-500.0,0.00035616,2]
[314841773,1708584642542,-500.0,0.00035616,2]
[314841774,1708584642555,-500.0,0.00035616,2]
[314841775,1708584642564,-500.0,0.00035616,2]
[314841776,1708584642573,-670.47,0.00035616,2]
[314841777,1708584642582,-500.0,0.00035616,2]
[314841778,1708584642591,-500.0,0.00035616,2]
[314841779,1708584642600,-519.15140673,0.00035616,2]
[314841780,1708584642610,-532.4702109,0.00035616,2]
[314841781,1708584642619,-500.0,0.00035616,2]
[314841782,1708584642628,-500.0,0.00035616,2]
[314841783,1708584642637,-1348.42,0.00035616,2]
[314841784,1708584642646,-820.56,0.00035616,2]
[314841785,1708584642656,-500.0,0.00035616,2]
[314841786,1708584642665,-731.55,0.00035616,2]
[314841787,1708584642674,-500.0,0.00035616,2]
[314841788,1708584642683,-563.37,0.00035616,2]
[314841789,1708584642693,-500.0,0.00035616,2]
[314841790,1708584642702,-536.33,0.00035616,2]
[314841791,1708584642711,-500.0,0.00035616,2]
[314841792,1708584642721,-500.0,0.00035616,2]
[314841793,1708584642730,-498.14396783,0.00035616,2]
[314841794,1708584642739,-885.26,0.00035616,2]
[314841795,1708584642748,-801.15,0.00035616,2]
[314841796,1708584642757,-500.0,0.00035616,2]
[314841797,1708584642766,-500.0,0.00035616,2]
[314841798,1708584642775,-500.0,0.00035616,2]
[314841799,1708584642784,-500.0,0.00035616,2]
[314841800,1708584642794,-510.8563181,0.00035616,2]
[314841801,1708584642803,-500.0,0.00035616,2]
[314841802,1708584642813,-500.0,0.00035616,2]
[314841803,1708584642823,-500.0,0.00035616,2]
[314841804,1708584642832,-601.07,0.00035616,2]
[314841805,1708584642842,-500.0,0.00035616,2]
[314841806,1708584642852,-525.39891534,0.00035616,2]
[314841807,1708584642862,-500.0,0.00035616,2]
[314841808,1708584642872,-1354.25,0.00035616,2]
[314841809,1708584642883,-500.0,0.00035616,2]
[314841810,1708584642893,-500.0,0.00035616,2]
[314841811,1708584642902,-500.0,0.00035616,2]
[314841812,1708584642912,-530.24851728,0.00035616,2]
[314841813,1708584642921,-500.0,0.00035616,2]
[314841814,1708584642932,-445.16587418,0.00035616,2]
[314841815,1708584642942,-250.0,0.00035616,2]
[314841816,1708584642952,-727.93,0.00035616,2]
[314841817,1708584642961,-564.7580603,0.00035616,2]
[314841818,1708584642971,-500.0,0.00035616,2]
[314841819,1708584642980,-500.0,0.00035616,2]
[314841820,1708584642990,-502.40583819,0.00035616,2]
[314841821,1708584642999,-559.65229446,0.00035616,2]
[314841822,1708584643009,-500.0,0.00035616,2]
[314841823,1708584643018,-591.29859165,0.00035616,2]
[314841824,1708584643027,-500.0,0.00035616,2]
[314841825,1708584643036,-500.0,0.00035616,2]
[314841826,1708584643045,-2008.23,0.00035616,2]
[314841827,1708584643054,-500.0,0.00035616,2]
[314841828,1708584643064,-581.91,0.00035616,2]
[314841829,1708584643073,-500.0,0.00035616,2]
[314841830,1708584643082,-500.0,0.00035616,2]
[314841831,1708584643091,-500.0,0.00035616,2]
[314841832,1708584643100,-500.0,0.00035616,2]
[314841833,1708584643110,-760.55,0.00035616,2]
[314841834,1708584643118,-500.0,0.00035616,2]
[314841835,1708584643127,-500.0,0.00035616,2]
[314841836,1708584643137,-500.0,0.00035616,2]
[314841837,1708584643146,-503.94720532,0.00035616,2]
[314841838,1708584643155,-785.84,0.00035616,2]
[314841839,1708584643164,-516.39195121,0.00035616,2]
[314841840,1708584643173,-500.0,0.00035616,2]
[314841841,1708584643182,-515.76257013,0.00035616,2]
[314841842,1708584643191,-500.0,0.00035616,2]
[314841843,1708584643200,-500.0,0.00035616,2]
[314841844,1708584643209,-500.0,0.00035616,2]
[314841845,1708584643218,-500.0,0.00035616,2]
[314841846,1708584643228,-1040.9,0.00035616,2]
[314841847,1708584643237,-500.0,0.00035616,2]
[314841848,1708584643247,-625.64,0.00035616,2]
[314841849,1708584643256,-500.0,0.00035616,2]
[314841850,1708584643265,-545.67,0.00035616,2]
[314841851,1708584643274,-500.0,0.00035616,2]
[314841852,1708584643283,-500.0,0.00035616,2]
[314841853,1708584643293,-500.0,0.00035616,2]
[314841854,1708584643301,-500.0,0.00035616,2]
[314841855,1708584643311,-500.0,0.00035616,2]
[314841856,1708584643319,-1000.0,0.00035616,7]
[314841857,1708584643328,-500.0,0.00035616,2]
[314841859,1708584643338,-500.0,0.00035616,2]
[314841861,1708584643346,-500.0,0.00035616,2]
[314841862,1708584643355,-663.53,0.00035616,2]
[314841864,1708584643365,-500.0,0.00035616,2]
[314841867,1708584643374,-500.0,0.00035616,2]
[314841869,1708584643383,-570.04215852,0.00035616,2]
[314841871,1708584643392,-500.0,0.00035616,2]
[314841872,1708584643401,-1158.31,0.00035616,2]
[314841875,1708584643410,-500.0,0.00035616,2]
[314841876,1708584643419,-784.63,0.00035616,2]
[314841879,1708584643429,-776.69,0.00035616,2]
[314841880,1708584643438,-500.0,0.00035616,2]
[314841882,1708584643447,-500.0,0.00035616,2]
[314841885,1708584643456,-500.0,0.00035616,2]
[314841887,1708584643465,-628.04,0.00035616,2]
[314841890,1708584643474,-825.89,0.00035616,2]
[314841892,1708584643483,-507.60487577,0.00035616,2]
[314841894,1708584643494,-558.66,0.00035616,2]
[314841895,1708584643503,-500.0,0.00035616,2]
[314841896,1708584643512,-500.0,0.00035616,2]
[314841897,1708584643521,-1131.63,0.00035616,2]
[314841898,1708584643530,-500.0,0.00035616,2]
[314841899,1708584643540,-500.0,0.00035616,2]
[314841900,1708584643552,-531.60958934,0.00035616,2]
[314841901,1708584643561,-500.0,0.00035616,2]
[314841902,1708584643570,-500.0,0.00035616,2]
[314841903,1708584643578,-500.0,0.00035616,2]
[314841904,1708584643587,-625.77,0.00035616,2]
[314841905,1708584643598,-500.0,0.00035616,2]
[314841906,1708584643606,-500.0,0.00035616,2]
[314841907,1708584643616,-1512.71,0.00035616,2]
[314841908,1708584643625,-500.0,0.00035616,2]
[314841909,1708584643634,-500.0,0.00035616,2]
[314841910,1708584643643,-500.0,0.00035616,2]
[314841911,1708584643653,-266.51830068,0.00035616,2]
[314841912,1708584643663,-565.76583938,0.00035616,2]
[314841913,1708584643672,-500.0,0.00035616,2]
[314841914,1708584643682,-500.0,0.00035616,2]
[314841915,1708584643691,-775.95,0.00035616,2]
[314841916,1708584643700,-500.0,0.00035616,2]
[314841917,1708584643710,-500.0,0.00035616,2]
[314841918,1708584643720,-500.0,0.00035616,2]
[314841919,1708584643730,-500.0,0.00035616,2]
[314841920,1708584643741,-500.0,0.00035616,2]
[314841921,1708584643750,-614.4,0.00035616,2]
[314841922,1708584643759,-522.7,0.00035616,2]
[314841923,1708584643769,-500.0,0.00035616,2]
[314841924,1708584643779,-563.78087618,0.00035616,2]
[314841925,1708584643788,-500.0,0.00035616,2]
[314841926,1708584643797,-505.10348397,0.00035616,2]
[314841927,1708584643806,-1000.0,0.00035616,7]
[314841928,1708584643816,-466.56419852,0.00035616,2]
[314841929,1708584643824,-1000.0,0.00035616,7]
[314841930,1708584643834,-513.66176972,0.00035616,2]
[314841931,1708584643843,-832.77,0.00035616,2]
[314841932,1708584643853,-500.0,0.00035616,2]
[314841933,1708584643862,-668.15,0.00035616,2]
[314841934,1708584643871,-500.0,0.00035616,2]
[314841935,1708584643880,-500.0,0.00035616,2]
[314841936,1708584643889,-500.0,0.00035616,2]
[314841937,1708584643899,-503.95401143,0.00035616,2]
[314841938,1708584643909,-505.57349455,0.00035616,2]
[314841939,1708584643919,-500.0,0.00035616,2]
[314841940,1708584643929,-500.0,0.00035616,2]
[314841941,1708584643938,-500.0,0.00035616,2]
[314841942,1708584643947,-500.0,0.00035616,2]
[314841943,1708584643956,-500.0,0.00035616,2]
[314841944,1708584643966,-500.0,0.00035616,2]
[314841945,1708584643975,-500.0,0.00035616,2]
[314841946,1708584643984,-876.64,0.00035616,2]
[314841947,1708584643995,-500.0,0.00035616,2]
[314841948,1708584644005,-500.0,0.00035616,2]
[314841949,1708584644014,-500.0,0.00035616,2]
[314841950,1708584644023,-500.0,0.00035616,2]
[314841951,1708584644032,-542.39,0.00035616,2]
[314841952,1708584644042,-500.0,0.00035616,2]
[314841953,1708584644050,-500.0,0.00035616,2]
[314841954,1708584644059,-500.0,0.00035616,2]
[314841955,1708584644068,-500.0,0.00035616,2]
[314841956,1708584644077,-500.0,0.00035616,2]
[314841957,1708584644087,-500.0,0.00035616,2]
[314841958,1708584644096,-500.0,0.00035616,2]
[314841959,1708584644105,-500.0,0.00035616,2]
[314841960,1708584644114,-993.12,0.00035616,2]
[314841961,1708584644124,-517.9,0.00035616,2]
[314841962,1708584644133,-500.0,0.00035616,2]
[314841963,1708584644142,-513.38137677,0.00035616,2]
[314841964,1708584644152,-500.0,0.00035616,2]
[314841965,1708584644161,-795.62,0.00035616,2]
[314841966,1708584644170,-500.0,0.00035616,2]
[314841967,1708584644180,-1437.34,0.00035616,2]
[314841968,1708584644189,-500.0,0.00035616,2]
[314841969,1708584644198,-500.0,0.00035616,2]
[314841970,1708584644208,-500.0,0.00035616,2]
[314841971,1708584644216,-120.87160472,0.00035616,2]
[314841972,1708584644860,-379.12839528,0.00035616,2]
[314841973,1708584644870,-500.0,0.00035616,2]
[314841974,1708584644879,-500.0,0.00035616,2]
[314841975,1708584644889,-500.0,0.00035616,2]
[314841976,1708584644898,-500.0,0.00035616,2]
[314841977,1708584644907,-500.0,0.00035616,2]
[314841978,1708584644916,-500.0,0.00035616,2]
[314841979,1708584644925,-500.0,0.00035616,2]
[314841980,1708584644935,-500.0,0.00035616,2]
[314841981,1708584644944,-500.0,0.00035616,2]
[314841982,1708584644953,-1149.78,0.00035616,2]
[314841983,1708584644962,-500.0,0.00035616,2]
[314841984,1708584644972,-516.64597693,0.00035616,2]
[314841985,1708584644981,-565.77,0.00035616,2]
[314841986,1708584644990,-500.0,0.00035616,2]
[314841987,1708584644999,-808.29,0.00035616,2]
[314841988,1708584645008,-500.0,0.00035616,2]
[314841989,1708584645018,-576.93,0.00035616,2]
[314841990,1708584645027,-500.0,0.00035616,2]
[314841991,1708584645036,-500.0,0.00035616,2]
[314841992,1708584645045,-500.0,0.00035616,2]
[314841993,1708584645054,-500.0,0.00035616,2]
[314841994,1708584645064,-402.38450143,0.00035616,2]
[314841995,1708584645072,-500.0,0.00035616,2]
[314841996,1708584645082,-691.58,0.00035616,2]
[314841997,1708584645091,-500.0,0.00035616,2]
[314841998,1708584645100,-500.0,0.00035616,2]
[314841999,1708584645110,-500.0,0.00035616,2]
[314842000,1708584645119,-500.0,0.00035616,2]
[314842001,1708584645128,-1505.21,0.00035616,2]
[314842002,1708584645137,-500.0,0.00035616,2]
[314842003,1708584645146,-500.0,0.00035616,2]
[314842004,1708584645155,-916.36,0.00035616,2]
[314842005,1708584645164,-1195.16,0.00035616,2]
[314842006,1708584645173,-500.0,0.00035616,2]
[314842007,1708584645300,-500.0,0.00035616,2]
[314842008,1708584645309,-500.0,0.00035616,2]
[314842009,1708584645319,-500.0,0.00035616,2]
[314842010,1708584645328,-500.0,0.00035616,2]
[314842011,1708584645338,-500.0,0.00035616,2]
[314842012,1708584645348,-838.3,0.00035616,2]
[314842013,1708584645357,-557.7,0.00035616,2]
[314842014,1708584645367,-500.0,0.00035616,2]
[314842015,1708584645376,-500.0,0.00035616,2]
[314842016,1708584645386,-500.0,0.00035616,2]
[314842017,1708584645395,-500.0,0.00035616,2]
[314842018,1708584645404,-500.0,0.00035616,2]
[314842019,1708584645413,-876.9,0.00035616,2]
[314842020,1708584645422,-500.0,0.00035616,2]
[314842021,1708584645432,-366.01100263,0.00035616,2]
[314842022,1708584645441,-985.84,0.00035616,2]
[314842023,1708584645451,-476.43629189,0.00035616,2]
[314842024,1708584645461,-500.0,0.00035616,2]
[314842025,1708584645471,-500.0,0.00035616,2]
[314842026,1708584645482,-643.5,0.00035616,2]
[314842027,1708584645493,-500.0,0.00035616,2]
[314842028,1708584645503,-500.0,0.00035616,2]